fUSD/lending_fUSD_20251006
["ID","MTS","AMOUNT","RATE_DAILY","PERIOD"]
[389683883,1759792246686,-164.37537,0.00029258,30]
[389683884,1759792246695,-151.0,0.00029258,30]
[389683885,1759792246704,-151.0,0.00029258,30]
[389683886,1759792246713,-151.0,0.00029258,30]
[389683887,1759792246723,-151.0,0.00029258,30]
[389683888,1759792246733,-224.135303,0.00029258,30]
[389683889,1759792246742,-224.135303,0.00029258,30]
[389683890,1759792246751,-224.135303,0.00029258,30]
[389683891,1759792246761,-224.135303,0.00029258,30]
[389683892,1759792246771,-151.0,0.00029258,30]
[389683893,1759792246781,-151.0,0.00029258,30]
[389683894,1759792246790,-151.0,0.00029258,30]
[389683895,1759792246801,-151.0,0.00029258,30]
[389683896,1759792246810,-151.0,0.00029258,30]
[389683897,1759792246819,-151.0,0.00029258,15]
[389683898,1759792246829,-151.0,0.00029258,30]
[389683899,1759792246839,-724.692545,0.00029258,30]
[389683900,1759792246848,-294.72222,0.00029258,30]
[389683901,1759792246858,-724.692545,0.00029258,30]
[389683902,1759792246867,-724.692545,0.00029258,30]
[389683903,1759792246877,-724.692545,0.00029258,30]
[389683904,1759792246887,-151.0,0.00029258,30]
[389683905,1759792246896,-151.0,0.00029258,30]
[389683906,1759792246905,-151.0,0.00029258,30]
[389683907,1759792246915,-151.0,0.00029258,30]
[389683908,1759792246924,-151.0,0.00029258,30]
[389683909,1759792246934,-255.61475,0.0002926,2]
[389683910,1759792246943,-151.0,0.0002926,2]
[389683911,1759792246952,-73846.3132992,0.0002927,2]
[389683912,1759792246961,-150.0,0.00029271,2]
[389683913,1759792246970,-507.0,0.00029271,2]
[389683914,1759792246980,-150.0,0.00029271,2]
[389683915,1759792246989,-150.0,0.00029271,2]
[389683916,1759792246998,-150.0,0.00029271,2]
[389683917,1759792247008,-150.0,0.00029271,2]
[389683918,1759792247017,-153.72761504,0.00029271,2]
[389683919,1759792247026,-150.0,0.00029271,2]
[389683920,1759792247035,-150.0,0.00029271,2]
[389683921,1759792247044,-150.0,0.00029271,2]
[389683922,1759792247054,-150.0,0.00029271,2]
[389683923,1759792247064,-150.0,0.00029271,2]
[389683924,1759792247073,-150.0,0.00029271,2]
[389683925,1759792247082,-150.0,0.00029271,2]
[389683926,1759792247091,-150.0,0.00029271,2]
[389683927,1759792247101,-150.0,0.00029271,2]
[389683928,1759792247110,-150.0,0.00029271,2]
[389683929,1759792247120,-152.75692236,0.00029271,2]
[389683930,1759792247129,-150.0,0.00029271,2]
[389683931,1759792247138,-150.0,0.00029271,2]
[389683932,1759792247148,-250.0,0.00029271,2]
[389683933,1759792247157,-170.35789053,0.00029271,2]
[389683934,1759792247167,-150.0,0.00029271,2]
[389683935,1759792247176,-150.0,0.00029271,2]
[389683936,1759792247185,-150.0,0.00029271,2]
[389683937,1759792247194,-500.0,0.00029271,2]
[389683938,1759792247204,-500.0,0.00029271,2]
[389683939,1759792247213,-152.27320368,0.00029271,2]
[389683940,1759792247223,-500.0,0.00029271,2]
[389683941,1759792247232,-977.0,0.00029271,2]
[389683942,1759792247241,-150.0,0.00029271,2]
[389683943,1759792247250,-150.0,0.00029271,2]
[389683944,1759792247259,-500.0,0.00029273,5]
[389683945,1759792247268,-500.0,0.00029273,5]
[389683946,1759792247277,-416.43486152,0.00029273,2]
[389683947,1759792247286,-1000.0,0.00029273,2]
[389683948,1759792247295,-4651.6185432,0.00029274,2]
[389683949,1759792247305,-530.7503137,0.00029275,2]
[389683950,1759792247314,-645.06576588,0.00029277,2]
[389683951,1759792247324,-1000.0,0.00029278,5]
[389683952,1759792247336,-200.0,0.00029279,2]
[389683953,1759792247346,-759.38121806,0.00029279,2]
[389683954,1759792247355,-200.0,0.00029279,2]
[389683955,1759792247364,-873.69667024,0.00029281,2]
[389683956,1759792247375,-988.01212242,0.00029284,2]
[389683957,1759792247384,-253.89539389,0.00029284,2]
[389683958,1759792247394,-1102.3275746,0.00029286,2]
[389683959,1759792247404,-1216.64302679,0.00029288,2]
[389683960,1759792247414,-407.78661646,0.00029289,2]
[389683961,1759792247424,-759.94976443,0.0002929,3]
[389683962,1759792247434,-151.0,0.0002929,3]
[389683963,1759792247443,-151.0,0.0002929,3]
[389683964,1759792247453,-151.0,0.0002929,3]
[389683965,1759792247462,-153.70794709,0.0002929,3]
[389683966,1759792247472,-588.94594535,0.0002929,2]
[389683967,1759792247482,-188.71307275,0.0002929,2]
[389683968,1759792247664,-1330.95847897,0.0002929,2]
[389683969,1759792247675,-320.22267972,0.0002929,2]
[389683970,1759792247685,-155.0,0.00029299,2]
[389683971,1759792247694,-682.8855216,0.00029299,2]
[389683972,1759792247705,-525.96,0.000293,2]
[389683973,1759792247715,-167323.86811699,0.000293,2]
[389683974,1759792248410,-184.23686563,0.00028959,2]
[389683975,1759792248420,-288.26517429,0.00029239,2]
[389683976,1759792248431,-211.73482571,0.00029239,2]
[389683977,1759792248441,-500.0,0.00029239,2]
[389683978,1759792248451,-246.37968778,0.00029239,2]
[389683979,1759792248466,-253.62031222,0.00029239,2]
[389683980,1759792248476,-500.0,0.00029239,2]
[389683981,1759792248486,-500.0,0.00029239,2]
[389683982,1759792248496,-228.58925484,0.00029239,2]
[389683983,1759792248505,-44.56547457,0.000293,2]
[389683984,1759792284542,-522.86,0.00026953,2]
[389683985,1759792284591,-11850.8349813,0.00026953,2]
[389684350,1759792637902,-184.41879296,0.000168,2]
[389684352,1759792778001,-7.58057655,0.000168,2]
[389684353,1759792778030,-195.0,0.0001848,2]
[389684354,1759792778078,-117.6988469,0.0001848,2]
[389684356,1759792785014,-260.86889862,0.0001848,2]
[389684357,1759792851732,-184.41879296,0.000168,2]
[389684358,1759792988238,-88.30065051,0.000168,2]
[389684359,1759792988264,-62.69934949,0.00017631,2]
[389684360,1759792989873,-184.41879296,0.00017631,2]
[389684361,1759793014495,90000.0,0.00015,7]
[389684363,1759793044036,-62.80630825,0.00017631,2]
[389684364,1759793044060,-186.73116683,0.00018462,2]
[389684365,1759793045598,-195.0,0.00018046,2]
[389684366,1759793045622,-205.53747508,0.00018462,2]
[389684368,1759793087817,-215.86052775,0.00018046,2]
[389684369,1759793089849,-151.0,0.00018046,2]
[389684370,1759793093097,-366.86052775,0.00018046,2]
[389684371,1759793107954,485571.2838676,0.00015,2]
[389684373,1759793186056,-1766.2789445,0.00018046,2]
[389684374,1759793186088,-415.73734453,0.00018462,2]
[389684375,1759793186119,-1200.0,0.00018479,2]
[389684376,1759793186150,-195.0,0.0001848,2]
[389684377,1759793186181,-300.0,0.0001848,2]
[389684378,1759793186213,-173.02,0.000188,2]
[389684379,1759793186243,-195.0,0.00019394,2]
[389684380,1759793186273,-860.76240324,0.00019394,2]
[389684381,1759793186785,-1639.23759676,0.00019394,2]
[389684382,1759793219560,-351.45238952,0.000162,5]
[389684383,1759793222852,-351.45238952,0.000162,5]
[389684384,1759793239013,-9150.69038876,0.000162,5]
[389684385,1759793246146,-5964.95993812,0.000162,5]
[389684386,1759793253167,-195.0,0.00016199,2]
[389684387,1759793260627,-860.76240324,0.000162,5]
[389684388,1759793261490,-171.52213279,0.000162,5]
[389684395,1759793274248,28381.14473801,0.00015,2]
[389684396,1759793284689,-105.0,0.00016199,2]
[389684397,1759793284713,-68.45211667,0.00017819,2]
[389684398,1759793286911,-126.54788333,0.00017819,2]
[389684399,1759793286934,-206.44368689,0.00017819,2]
[389684400,1759793314635,401.77459555,0.00010136,2]
[389684401,1759793314972,-173.02,0.00017819,2]
[389684402,1759793315790,-293.62265556,0.00017819,2]
[389684413,1759793432338,-187.67606079,0.00017819,2]
[389684414,1759793432348,-150.0,0.00017819,2]
[389684415,1759793432357,-604.92338676,0.00019601,2]
[389684416,1759793432369,-1016.50886772,0.00019601,2]
[389684417,1759793432378,-271.51623216,0.0002,2]
[389684418,1759793432387,-9150.69038876,0.0002,2]
[389684419,1759793432397,-7136.06366812,0.0002,2]
[389684420,1759793432406,-224.18,0.00021677,2]
[389684421,1759793432415,-300.0,0.0002171,2]
[389684422,1759793432424,-7966.2527434,0.00021711,7]
[389684423,1759793432434,-300.0,0.00021918,2]
[389684424,1759793432443,-200.0,0.00021918,2]
[389684425,1759793432452,-300.0,0.0002411,2]
[389684426,1759793432462,-200.0,0.0002411,2]
[389684427,1759793432471,-172.250746,0.00025,2]
[389684428,1759793432481,-1059.0,0.00025627,2]
[389684429,1759793432490,-798.0,0.00025627,2]
[389684430,1759793432499,-167.0,0.00025627,2]
[389684431,1759793432508,-500.0,0.00026,60]
[389684432,1759793432517,-150.99,0.00026,2]
[389684433,1759793432526,-300.0,0.00026301,2]
[389684434,1759793432535,-151.52760972,0.00026301,2]
[389684435,1759793432544,-150.0,0.00026359,4]
[389684436,1759793432553,-150.0,0.00026359,4]
[389684437,1759793432562,-150.0,0.00026359,4]
[389684438,1759793432572,-150.0,0.00026359,4]
[389684440,1759793432580,-150.0,0.00026359,4]
[389684442,1759793432590,-150.0,0.00026359,4]
[389684444,1759793432599,-150.0,0.00026359,4]
[389684446,1759793432608,-370.60951734,0.00026398,2]
[389684447,1759793432618,-1439.64,0.00026797,30]
[389684448,1759793432626,-200.0,0.00026875,2]
[389684449,1759793432635,-364.32,0.00026953,2]
[389684450,1759793432644,-528.68,0.00026953,2]
[389684451,1759793432653,-523.87,0.00026953,2]
[389684452,1759793432662,-521.01,0.00026953,2]
[389684453,1759793432671,-516.13,0.00026953,2]
[389684454,1759793432680,-522.81,0.00026953,2]
[389684455,1759793432690,-529.46,0.00026953,2]
[389684456,1759793432699,-516.26,0.00026953,2]
[389684457,1759793432708,-515.36,0.00026953,2]
[389684458,1759793432717,-534.79,0.00026953,2]
[389684459,1759793432727,-529.13,0.00026953,2]
[389684460,1759793432736,-4153.1450187,0.00026953,2]
[389684461,1759793432746,-1000.0,0.00026953,2]
[389684462,1759793432755,-666.0,0.00027099,3]
[389684463,1759793432765,-364.32,0.00027227,2]
[389684464,1759793432774,-168.0,0.00027275,2]
[389684465,1759793432783,-155.56,0.00027336,7]
[389684466,1759793432792,-349.0,0.00027424,7]
[389684467,1759793432801,-155.56,0.00027436,15]
[389684468,1759793432810,-822.29,0.0002744,2]
[389684469,1759793432820,-347.0,0.00027453,7]
[389684470,1759793432829,-349.0,0.00027467,2]
[389684471,1759793432838,-347.0,0.00027476,2]
[389684472,1759793432847,-364.32,0.00027501,2]
[389684473,1759793432857,-155.56,0.00027536,15]
[389684474,1759793432866,-348.0,0.00027583,2]
[389684475,1759793432875,-347.0,0.00027607,2]
[389684476,1759793432884,-347.0,0.00027649,2]
[389684477,1759793432893,-1555.039,0.00027649,17]
[389684478,1759793432903,-213.0,0.000277,2]
[389684479,1759793432912,-364.32,0.00027775,2]
[389684480,1759793432921,-322.76049362,0.00027807,2]
[389684481,1759793432930,-150.0,0.00027823,7]
[389684482,1759793432939,-150.0,0.00027823,7]
[389684483,1759793432949,-9000.0,0.00027823,2]
[389684484,1759793432958,-4157.02643847,0.00027823,2]
[389684485,1759793432968,-601.3376128,0.00027823,2]
[389684486,1759793432977,-297.71832794,0.00027823,2]
[389684487,1759793432986,-2000.0,0.00027823,2]
[389684488,1759793432995,-2000.0,0.00027823,2]
[389684489,1759793433004,-2000.0,0.00027823,2]
[389684490,1759793433014,-578.20924308,0.00027823,2]
[389684491,1759793433024,-339.48163206,0.00027823,2]
[389684492,1759793433034,-7965.41053268,0.00027823,2]
[389684493,1759793433043,-322.6107,0.00027823,2]
[389684494,1759793433052,-200.0,0.00027823,2]
[389684495,1759793433061,-163.54968989,0.00027823,2]
[389684496,1759793433070,-231.28369723,0.00027823,2]
[389684497,1759793433080,-8260.13072239,0.00027878,2]
[389684498,1759793433090,-258.053266,0.000279,2]
[389684499,1759793433100,-347.0,0.00027931,7]
[389684500,1759793433110,-5011.4254682,0.00027933,2]
[389684501,1759793433120,-1000.0,0.00027964,2]
[389684502,1759793433134,-11181.28212715,0.0002803,2]
[389684503,1759793433143,-364.32,0.00028049,2]
[389684504,1759793433153,-347.0,0.0002806,2]
[389684505,1759793433167,-474.0,0.00028082,2]
[389684506,1759793433176,-807.65,0.00028082,2]
[389684507,1759793433185,-947.58,0.00028082,2]
[389684508,1759793433195,-807.65,0.00028137,2]
[389684509,1759793433205,-348.0,0.00028161,2]
[389684510,1759793433214,-175.48,0.00028278,2]
[389684511,1759793433224,-173.02,0.000283,2]
[389684512,1759793433233,-679.68,0.000283,2]
[389684513,1759793433242,-1342.26584871,0.00028421,2]
[389684514,1759793433252,-300.0,0.00028493,7]
[389684515,1759793433262,-173.02,0.000285,2]
[389684516,1759793433272,-347.0,0.00028523,7]
[389684517,1759793433282,-825.56,0.00028585,2]
[389684518,1759793433291,-2394.64,0.00028585,2]
[389684519,1759793433301,-167.94,0.00028585,2]
[389684520,1759793433311,-323.15,0.00028585,2]
[389684521,1759793433321,-175.72,0.00028585,2]
[389684522,1759793433331,-159.05,0.00028585,2]
[389684523,1759793433340,-545.7,0.00028585,2]
[389684524,1759793433349,-1269.5068409,0.00028589,2]
[389684525,1759793433358,-163.1940739,0.00028589,2]
[389684526,1759793433368,-347.0,0.00028676,2]
[389684527,1759793433377,-173.02,0.000288,2]
[389684528,1759793433387,-173.02,0.000288,2]
[389684529,1759793433396,-209.0,0.0002888,2]
[389684530,1759793433405,-3310.15838179,0.000289,2]
[389684531,1759793433414,-184.23686563,0.000289,2]
[389684532,1759793433423,-477.45836583,0.000289,2]
[389684533,1759793433433,-3310.15838174,0.00028933,2]
[389684534,1759793433442,-477.45836581,0.00028933,2]
[389684535,1759793433451,-3310.15838174,0.00028967,2]
[389684536,1759793433461,-477.45836581,0.00028967,2]
[389684537,1759793433470,-1000.0,0.00028975,2]
[389684538,1759793433480,-500.0,0.00028999,7]
[389684539,1759793433489,-500.0,0.00028999,7]
[389684540,1759793433499,-500.0,0.00028999,7]
[389684541,1759793433509,-500.0,0.00028999,7]
[389684542,1759793433519,-503.29484228,0.00028999,7]
[389684543,1759793433528,-889.19,0.00028999,7]
[389684544,1759793433538,-535.03874102,0.00028999,7]
[389684545,1759793433547,-500.47280303,0.00028999,7]
[389684546,1759793433557,-500.0,0.00028999,7]
[389684547,1759793433566,-500.0,0.00028999,7]
[389684548,1759793433575,-543.0,0.00028999,7]
[389684549,1759793433585,-795.22,0.00028999,7]
[389684550,1759793433594,-500.0,0.00028999,7]
[389684551,1759793433603,-500.0,0.00028999,7]
[389684552,1759793433613,-2467.52,0.00028999,7]
[389684553,1759793433622,-2993.19,0.00028999,7]
[389684554,1759793433631,-1086.83,0.00028999,7]
[389684555,1759793433640,-500.0,0.00028999,7]
[389684556,1759793433650,-500.0,0.00028999,7]
[389684557,1759793433659,-35362.12012845,0.00029,6]
[389684558,1759793433668,-300580.01641704,0.00029,120]
[389684559,1759793433685,-10209.79869063,0.00029,120]
[389684560,1759793433695,-1000.0,0.00029,30]
[389684561,1759793433704,-1000.0,0.00029,120]
[389684562,1759793433713,-3310.15838174,0.00029,2]
[389684563,1759793433723,-2007.41,0.00029,30]
[389684564,1759793433732,-3310.15838174,0.00029033,2]
[389684565,1759793433741,-184.23686563,0.00029045,2]
[389684566,1759793433750,-200.0,0.00029065,2]
[389684567,1759793433760,-3310.15838174,0.00029067,2]
[389684568,1759793433769,-393.17872503,0.00029079,2]
[389684569,1759793433778,-435.47227254,0.0002909,2]
[389684570,1759793433787,-347.0,0.00029091,2]
[389684571,1759793433796,-474.0,0.00029096,2]
[389684572,1759793433805,-401.75370355,0.00029096,2]
[389684573,1759793433820,-405.89629645,0.00029096,2]
[389684574,1759793433829,-474.0,0.00029096,2]
[389684575,1759793433838,-2500.0,0.000291,2]
[389684576,1759793433847,-401.08012471,0.000291,2]
[389684577,1759793433857,-500.0,0.000291,7]
[389684578,1759793433866,-500.0,0.000291,7]
[389684579,1759793433875,-514.42659823,0.000291,7]
[389684580,1759793433884,-500.0,0.000291,7]
[389684581,1759793433893,-889.19,0.000291,7]
[389684582,1759793433902,-500.0,0.000291,7]
[389684583,1759793433911,-500.0,0.000291,7]
[389684584,1759793433920,-3310.15838174,0.000291,2]
[389684585,1759793433929,-795.22,0.000291,7]
[389684586,1759793433938,-500.0,0.000291,7]
[389684587,1759793433947,-500.0,0.000291,7]
[389684588,1759793433956,-2467.52,0.000291,7]
[389684589,1759793433966,-2993.19,0.000291,7]
[389684590,1759793433975,-1086.83,0.000291,7]
[389684591,1759793433985,-500.0,0.000291,7]
[389684592,1759793433994,-500.0,0.000291,7]
[389684593,1759793434004,-15832.868556,0.00029101,2]
[389684594,1759793434013,-205.59973733,0.00029116,2]
[389684595,1759793434022,-164.09830719,0.00029117,15]
[389684596,1759793434031,-1546.06250161,0.00029126,2]
[389684597,1759793434043,-3453.93749839,0.00029126,2]
[389684598,1759793434052,-1544.84844523,0.00029126,2]
[389684599,1759793434061,-205.59973732,0.00029126,2]
[389684600,1759793434070,-3310.15838174,0.00029133,2]
[389684601,1759793434080,-160.73597816,0.00029136,2]
[389684602,1759793434089,-313.86790211,0.00029136,2]
[389684603,1759793434099,-1000.0,0.00029142,2]
[389684604,1759793434108,-1795.1393624,0.00029156,2]
[389684605,1759793434118,-18098.0859395,0.00029156,2]
[389684606,1759793434131,-477.7210408,0.00029156,2]
[389684607,1759793434141,-329.65749696,0.00029166,2]
[389684608,1759793434150,-3310.15838174,0.00029167,2]
[389684609,1759793434159,-382.71,0.00029178,2]
[389684610,1759793434169,-184.23686563,0.00029189,2]
[389684611,1759793434178,-1000.0,0.00029192,2]
[389684612,1759793434188,-322.6107,0.00029192,2]
[389684613,1759793434197,-231.28369723,0.00029192,2]
[389684614,1759793434206,-500.0,0.00029199,7]
[389684615,1759793434216,-500.0,0.00029199,7]
[389684616,1759793434226,-500.0,0.00029199,7]
[389684617,1759793434236,-500.0,0.00029199,7]
[389684618,1759793434245,-500.0,0.00029199,7]
[389684619,1759793434255,-500.0,0.00029199,7]
[389684620,1759793434265,-500.0,0.00029199,7]
[389684621,1759793434275,-722.48,0.00029199,7]
[389684622,1759793434284,-500.0,0.00029199,7]
[389684623,1759793434293,-307.92783849,0.00029199,7]
[389684624,1759793434303,-500.0,0.00029199,7]
[389684625,1759793434312,-500.0,0.00029199,7]
[389684626,1759793434322,-500.0,0.00029199,7]
[389684627,1759793434331,-637.16015587,0.00029199,7]
[389684628,1759793434340,-474.0537165,0.00029199,7]
[389684629,1759793434350,-500.0,0.00029199,7]
[389684630,1759793434359,-500.0,0.00029199,7]
[389684631,1759793434368,-500.0,0.00029199,7]
[389684632,1759793434377,-500.0,0.00029199,7]
[389684633,1759793434386,-500.0,0.00029199,7]
[389684634,1759793434396,-500.0,0.00029199,7]
[389684635,1759793434405,-500.0,0.00029199,7]
[389684636,1759793434414,-500.0,0.00029199,7]
[389684637,1759793434424,-526.53485067,0.00029199,7]
[389684638,1759793434433,-500.0,0.00029199,7]
[389684639,1759793434442,-500.0,0.00029199,7]
[389684640,1759793434451,-500.0,0.00029199,7]
[389684641,1759793434460,-500.0,0.00029199,7]
[389684642,1759793434470,-599.18539349,0.00029199,7]
[389684643,1759793434479,-500.0,0.00029199,7]
[389684644,1759793434488,-400.0,0.00029199,7]
[389684645,1759793434497,-1693.25,0.00029199,7]
[389684646,1759793434507,-51381.62272318,0.000292,2]
[389684647,1759793434519,-9089.77437682,0.000292,2]
[389684648,1759793434529,-208.0830223,0.000292,2]
[389684649,1759793434538,-3310.15838174,0.000292,2]
[389684650,1759793434547,-9031.50611265,0.00029206,3]
[389684651,1759793434561,-1949.18641437,0.00029206,3]
[389684661,1759793438147,-680.68911547,0.00028999,7]
[389684662,1759793438288,-1748.77088453,0.00028999,7]
[389684663,1759793438298,-500.0,0.00028999,7]
[389684664,1759793438307,-500.0,0.00028999,7]
[389684665,1759793438317,-500.0,0.00028999,7]
[389684666,1759793438326,-477.45836581,0.00029,2]
[389684667,1759793438335,-2429.46,0.000291,7]
[389684668,1759793438344,-367.50151534,0.000291,7]
[389684669,1759793438355,-132.49848466,0.000291,7]
[389684670,1759793438365,-500.0,0.000291,7]
[389684671,1759793438375,-253.04891287,0.000291,7]
[389684672,1759793438397,-326.33601825,0.00028999,2]
[389684673,1759793438486,-709.38,0.00028999,2]
[389684675,1759793440438,-540.43967541,0.00028999,2]
[389684676,1759793440713,-140.82878233,0.00028999,2]
[389684680,1759793440751,-939.91552401,0.00028999,2]
[389684682,1759793440761,-310.03317599,0.00028999,7]
[389684685,1759793440777,-189.96682401,0.00028999,7]
[389684687,1759793440788,-246.95108713,0.000291,7]
[389684689,1759793440797,-2656.9,0.000291,2]
[389684691,1759793440807,-500.0,0.000291,7]
[389684693,1759793440818,-15560.90191648,0.00029206,3]
[389684695,1759793440827,-26541.5944435,0.00029207,3]
[389684697,1759793440836,-500.0,0.00029214,7]
[389684699,1759793440844,-500.0,0.00029214,7]
[389684701,1759793440853,-889.19,0.00029214,7]
[389684703,1759793440862,-500.0,0.00029214,7]
[389684705,1759793440872,-500.0,0.00029214,7]
[389684707,1759793440886,-795.22,0.00029214,7]
[389684709,1759793440895,-500.0,0.00029214,7]
[389684711,1759793440905,-2467.52,0.00029214,7]
[389684713,1759793440914,-2993.19,0.00029214,7]
[389684715,1759793440923,-1086.83,0.00029214,7]
[389684717,1759793440932,-500.0,0.00029214,7]
[389684719,1759793440941,-501.0,0.00029214,7]
[389684721,1759793440949,-2429.46,0.00029214,7]
[389684723,1759793440959,-500.0,0.00029214,7]
[389684725,1759793440967,-500.0,0.00029214,7]
[389684727,1759793440976,-500.0,0.00029214,7]
[389684729,1759793440986,-2656.9,0.00029214,2]
[389684731,1759793440996,-79624.7833305,0.00029215,3]
[389684733,1759793441006,-26541.5944435,0.00029215,3]
[389684735,1759793441015,-53083.188887,0.00029216,3]
[389684737,1759793441023,-70932.7776565,0.00029216,3]
[389684739,1759793441032,-26541.5944435,0.00029217,3]
[389684741,1759793441041,-23644.2592188,0.00029217,3]
[389684742,1759793441050,-1000.0,0.00029217,2]
[389684744,1759793441059,-500.0,0.00029217,7]
[389684746,1759793441067,-509.08602676,0.00029217,7]
[389684748,1759793441076,-889.19,0.00029217,7]
[389684750,1759793441085,-505.82001087,0.00029217,7]
[389684752,1759793441094,-500.0,0.00029217,7]
[389684754,1759793441103,-795.22,0.00029217,7]
[389684756,1759793441112,-500.0,0.00029217,7]
[389684758,1759793441122,-2467.52,0.00029217,7]
[389684760,1759793441135,-2993.19,0.00029217,7]
[389684762,1759793441144,-1086.83,0.00029217,7]
[389684764,1759793441153,-500.0,0.00029217,7]
[389684766,1759793441162,-2429.46,0.00029217,7]
[389684768,1759793441172,-500.0,0.00029217,7]
[389684770,1759793441181,-500.0,0.00029217,7]
[389684772,1759793441189,-214.25233861,0.00029217,7]
[389684774,1759793441198,-2656.9,0.00029217,2]
[389684776,1759793441209,-26541.5944435,0.00029217,3]
[389684778,1759793441219,-23644.2592188,0.00029217,3]
[389684780,1759793441228,-500.0,0.00029219,2]
[389684782,1759793441238,-500.0,0.00029219,2]
[389684784,1759793441247,-500.0,0.00029219,2]
[389684786,1759793441257,-351.15463317,0.00029219,2]
[389684788,1759793441266,-500.0,0.00029224,7]
[389684789,1759793441275,-500.0,0.00029224,7]
[389684790,1759793441285,-722.48,0.00029224,7]
[389684791,1759793441294,-500.0,0.00029224,7]
[389684792,1759793441302,-500.0,0.00029224,7]
[389684793,1759793441313,-504.4219056,0.00029224,7]
[389684794,1759793441322,-500.0,0.00029224,7]
[389684795,1759793441331,-500.0,0.00029224,7]
[389684796,1759793441340,-500.0,0.00029224,7]
[389684797,1759793441349,-500.0,0.00029224,7]
[389684798,1759793441358,-500.0,0.00029224,7]
[389684799,1759793441367,-500.0,0.00029224,7]
[389684800,1759793441376,-500.0,0.00029224,7]
[389684801,1759793441386,-500.0,0.00029224,7]
[389684802,1759793441395,-500.0,0.00029224,7]
[389684803,1759793441404,-500.0,0.00029224,7]
[389684804,1759793441412,-500.0,0.00029224,7]
[389684805,1759793441422,-19882.46,0.00029224,7]
[389684806,1759793441434,-500.0,0.00029224,7]
[389684807,1759793441443,-614.42500001,0.00029224,7]
[389684808,1759793441452,-500.0,0.00029224,7]
[389684809,1759793441462,-500.0,0.00029224,7]
[389684810,1759793441471,-500.0,0.00029224,7]
[389684811,1759793441480,-500.0,0.00029224,7]
[389684812,1759793441490,-500.0,0.00029224,7]
[389684813,1759793441499,-889.19,0.00029224,7]
[389684814,1759793441510,-1693.25,0.00029224,7]
[389684815,1759793441519,-500.0,0.00029224,7]
[389684816,1759793441527,-500.0,0.00029224,7]
[389684817,1759793441537,-6684.84,0.00029224,7]
[389684818,1759793441546,-795.22,0.00029224,7]
[389684819,1759793441555,-271.10628107,0.00029224,7]
[389684820,1759793441564,-500.0,0.00029224,7]
[389684821,1759793441573,-2467.52,0.00029224,7]
[389684822,1759793441582,-2993.19,0.00029224,7]
[389684823,1759793441592,-1086.83,0.00029224,7]
[389684824,1759793441601,-2429.46,0.00029224,7]
[389684825,1759793441610,-500.0,0.00029224,7]
[389684826,1759793441620,-500.0,0.00029224,7]
[389684827,1759793441629,-2656.9,0.00029224,2]
[389684828,1759793441639,-500.0,0.00029225,7]
[389684829,1759793441648,-500.0,0.00029225,7]
[389684830,1759793441658,-500.0,0.00029225,7]
[389684831,1759793441667,-500.0,0.00029225,7]
[389684832,1759793441676,-500.0,0.00029225,7]
[389684833,1759793441685,-500.0,0.00029225,7]
[389684834,1759793441694,-500.0,0.00029225,7]
[389684835,1759793441703,-500.0,0.00029225,7]
[389684836,1759793441712,-500.0,0.00029225,7]
[389684837,1759793441720,-500.0,0.00029225,7]
[389684838,1759793441729,-1026.97,0.00029225,7]